[Event "17th Memorial Lezcano Montalvo 2025"]
[Site "Gran Canaria"]
[Date "2025.04.17"]
[Round "6.31"]
[White "Cruz Ramirez, Nauzet"]
[Black "Quintero Hernandez, Marcos Jesus"]
[Result "0-1"]
[Annotator "NA COMBH"]
[ECO "D35"]
[WhiteElo "2076"]
[BlackElo "1874"]
[PlyCount "60"]
[EventDate "2025.04.13"]
[EventType "swiss"]
[EventCountry "ESP"]
[SourceTitle "playchess.com"]
[Source "ChessBase"]
[SourceQuality "1"]
[TimeControl "5400+30"]

1. d4 {[%emt 0:00:03]} e6 {[%emt 0:00:19]} 2. c4 {[%emt 0:00:08]} d5 {[%emt 0:00:46]} 3. Nc3 {[%emt 0:00:05]} Be7 {[%emt 0:00:07]} 4. cxd5 {[%emt 0:00:09]} exd5 {[%emt 0:00:02]} 5. Bf4 {[%emt 0:00:12]} c6 {[%emt 0:00:51]} 6. e3 {[%emt 0:00:10]} Nf6 {[%emt 0:00:07]} 7. Bd3 {[%emt 0:00:06]} O-O {[%emt 0:02:05]} 8. Nge2 {[%emt 0:01:20]} Re8 {[%emt 0:01:16]} 9. O-O {[%emt 0:00:30]} Nbd7 {[%emt 0:02:28]} 10. a3 {[%emt 0:01:34]} Nf8 {[%emt 0:00:54]} 11. b4 {[%emt 0:00:22]} Ne6 {[%emt 0:01:54]} 12. Bg3 {[%emt 0:00:50]} Bd6 {[%emt 0:02:55]} 13. Qb3 {[%emt 0:03:33]} Bxg3 {[%emt 0:00:37]} 14. Nxg3 {[%emt 0:00:03]} Bd7 {[%emt 0:10:57]} 15. a4 {[%emt 0:01:17]} g6 {[%emt 0:02:03]} 16. Nge2 {[%emt 0:05:35]} Qe7 {[%emt 0:04:03]} 17. b5 {[%emt 0:03:18]} Rab8 {[%emt 0:02:33]} 18. a5 {[%emt 0:07:48]} Ng5 {[%emt 0:05:14]} 19. Qa3 {[%emt 0:11:27]} Qd8 {[%emt 0:03:40]} 20. a6 {[%emt 0:11:54]} b6 {[%emt 0:05:03]} 21. Rac1 {[%emt 0:06:11]} Rc8 {[%emt 0:05:41]} 22. bxc6 {[%emt 0:01:59]} Bxc6 {[%emt 0:00:16]} 23. Nb5 {[%emt 0:05:50]} Bxb5 {[%emt 0:05:48]} 24. Bxb5 {[%emt 0:00:28]} Rf8 {[%emt 0:02:27]} 25. Rxc8 {[%emt 0:01:17]} Qxc8 {[%emt 0:00:30]} 26. Qe7 {[%emt 0:00:08]} Kg7 {[%emt 0:00:35]} 27. Qxa7 {[%emt 0:00:07]} Qg4 {[%emt 0:00:23]} 28. Qc7 {[%emt 0:03:35]} Qc8 {[%emt 0:07:16]} 29. Rc1 {[%emt 0:02:56]} Qg4 {[%emt 0:01:05]} 30. Qf4 {[%emt 0:01:29]} Nh3+ {[%emt 0:00:15]} 0-1

[Event "17th Memorial Lezcano Montalvo 2025"]
[Site "Gran Canaria"]
[Date "2025.04.17"]
[Round "6.32"]
[White "Sosa Suarez, Carla Cristina"]
[Black "Castro Miguelez, Jose"]
[Result "1-0"]
[Annotator "NA RC"]
[ECO "B31"]
[WhiteElo "2056"]
[BlackElo "1846"]
[PlyCount "67"]
[EventDate "2025.04.13"]
[EventType "swiss"]
[EventCountry "ESP"]
[SourceTitle "playchess.com"]
[Source "ChessBase"]
[SourceQuality "1"]
[TimeControl "5400+30"]

1. e4 {[%emt 0:00:02]} c5 {[%emt 0:00:06]} 2. Be2 {[%emt 0:00:04]} Nc6 {[%emt 0:00:11]} 3. d3 {[%emt 0:00:07]} g6 {[%emt 0:00:37]} 4. f4 {[%emt 0:00:04]} d6 {[%emt 0:00:32]} 5. Nf3 {[%emt 0:00:04]} Bg7 {[%emt 0:00:13]} 6. c3 {[%emt 0:00:05]} a6 {[%emt 0:10:40]} 7. a4 {[%emt 0:02:19]} Nf6 {[%emt 0:01:54]} 8. Be3 {[%emt 0:03:08]} b6 {[%emt 0:07:24]} 9. Na3 {[%emt 0:01:54]} Bb7 {[%emt 0:00:36]} 10. O-O {[%emt 0:00:51]} O-O {[%emt 0:14:56]} 11. Qe1 {[%emt 0:04:34]} e5 {[%emt 0:08:57]} 12. fxe5 {[%emt 0:05:01]} Nxe5 {[%emt 0:04:24]} 13. Nxe5 {[%emt 0:02:59]} dxe5 {[%emt 0:03:01]} 14. a5 {[%emt 0:01:27]} Nd7 {[%emt 0:08:22]} 15. axb6 {[%emt 0:01:06]} Qxb6 {[%emt 0:02:46]} 16. Nc4 {[%emt 0:01:12]} Qc7 {[%emt 0:03:50]} 17. Qh4 {[%emt 0:03:34]} f6 {[%emt 0:03:22]} 18. Rf3 {[%emt 0:05:50]} Rf7 {[%emt 0:01:42]} 19. Bd1 {[%emt 0:02:34]} Kh8 {[%emt 0:01:47]} 20. Bb3 {[%emt 0:04:11]} Re7 {[%emt 0:00:36]} 21. Rg3 {[%emt 0:02:29]} Nf8 {[%emt 0:01:25]} 22. Ra5 {[%emt 0:03:19]} g5 {[%emt 0:03:31]} 23. Qh5 {[%emt 0:03:12]} Ne6 {[%emt 0:00:58]} 24. Rh3 {[%emt 0:07:24]} h6 {[%emt 0:00:57]} 25. Qg6 {[%emt 0:09:07]} Rf8 {[%emt 0:04:18]} 26. Ra1 {[%emt 0:10:21]} Bc8 {[%emt 0:02:07]} 27. Bd2 {[%emt 0:03:13]} Nf4 {[%emt 0:02:54]} 28. Rxh6+ {[%emt 0:01:30]} Bxh6 {[%emt 0:00:07]} 29. Qxh6+ {[%emt 0:00:03]} Kg8 {[%emt 0:00:08]} 30. Bxf4 {[%emt 0:01:40]} exf4 {[%emt 0:00:44]} 31. Ne5+ {[%emt 0:02:46]} Re6 {[%emt 0:01:25]} 32. Ng6 {[%emt 0:02:23]} Qg7 {[%emt 0:02:06]} 33. Bxe6+ {[%emt 0:00:28]} Bxe6 {[%emt 0:00:06]} 34. Qxg7+ {[%emt 0:00:06]} 1-0

[Event "17th Memorial Lezcano Montalvo 2025"]
[Site "Gran Canaria"]
[Date "2025.04.17"]
[Round "6.33"]
[White "Roquero Redondo, Miguel"]
[Black "Pace, Gabriele"]
[Result "1-0"]
[Annotator "NA RC"]
[ECO "B01"]
[WhiteElo "2037"]
[BlackElo "1895"]
[PlyCount "133"]
[EventDate "2025.04.13"]
[EventType "swiss"]
[EventCountry "ESP"]
[SourceTitle "playchess.com"]
[Source "ChessBase"]
[SourceQuality "1"]
[TimeControl "5400+30"]

1. e4 {[%emt 0:00:03]} e6 {[%emt 0:00:01]} 2. d4 {[%emt 0:00:12]} b6 {[%emt 0:00:02]} 3. Bd3 {[%emt 0:00:32]} Bb7 {[%emt 0:00:02]} 4. Qe2 {[%emt 0:01:01]} d5 {[%emt 0:01:22]} 5. exd5 {[%emt 0:00:32]} Bxd5 {[%emt 0:00:05]} 6. Nf3 {[%emt 0:00:35]} Nf6 {[%emt 0:00:28]} 7. O-O {[%emt 0:02:13]} Be7 {[%emt 0:00:55]} 8. c4 {[%emt 0:06:33]} Bb7 {[%emt 0:00:20]} 9. Nc3 {[%emt 0:01:11]} O-O {[%emt 0:00:39]} 10. Bg5 {[%emt 0:01:44]} c5 {[%emt 0:10:07]} 11. dxc5 {[%emt 0:00:55]} Bxc5 {[%emt 0:00:19]} 12. Rad1 {[%emt 0:02:39]} Nbd7 {[%emt 0:00:16]} 13. Ne5 {[%emt 0:09:26]} Qc7 {[%emt 0:02:13]} 14. Nxd7 {[%emt 0:03:29]} Nxd7 {[%emt 0:00:19]} 15. Bxh7+ {[%emt 0:00:48]} Kxh7 {[%emt 1:20:52]} 16. Qd3+ {[%emt 1:06:37]} Kg8 {[%emt 0:00:00]} 17. Qxd7 {[%emt 0:00:00]} Qc6 {[%emt 0:00:00]} 18. Qxc6 {[%emt 0:00:00]} Bxc6 {[%emt 0:00:00]} 19. b3 {[%emt 0:00:00]} f6 {[%emt 0:00:00]} 20. Be3 {[%emt 0:00:00]} Bb4 {[%emt 0:00:00]} 21. Ne2 {[%emt 0:00:00]} e5 {[%emt 0:00:00]} 22. Bd2 {[%emt 0:00:00]} Bc5 {[%emt 0:00:00]} 23. Bc3 {[%emt 0:00:00]} Rfd8 {[%emt 0:00:00]} 24. Ng3 {[%emt 0:00:00]} Kf7 {[%emt 0:00:00]} 25. Rfe1 {[%emt 0:00:00]} g6 {[%emt 0:00:00]} 26. Kf1 {[%emt 0:00:00]} a5 {[%emt 0:00:00]} 27. a4 {[%emt 0:00:00]} Rh8 {[%emt 0:00:00]} 28. h3 {[%emt 0:00:00]} Rad8 {[%emt 0:00:00]} 29. f3 {[%emt 0:00:00]} Ke7 {[%emt 0:00:00]} 30. Ke2 {[%emt 0:00:00]} Rxd1 {[%emt 0:00:00]} 31. Rxd1 {[%emt 0:00:00]} Rd8 {[%emt 0:00:00]} 32. Rxd8 {[%emt 0:00:00]} Kxd8 {[%emt 0:00:00]} 33. Ne4 {[%emt 0:00:00]} Be7 {[%emt 0:00:00]} 34. Bd2 {[%emt 0:00:00]} f5 {[%emt 0:00:00]} 35. Nf2 {[%emt 0:00:00]} Bd6 {[%emt 0:00:00]} 36. Be3 {[%emt 0:00:00]} Bc7 {[%emt 0:00:00]} 37. Nd1 {[%emt 0:00:00]} Kd7 {[%emt 0:00:00]} 38. Nc3 {[%emt 0:00:00]} Ke6 {[%emt 0:00:00]} 39. Kd3 {[%emt 0:00:00]} Bd8 {[%emt 0:00:00]} 40. Ke2 {[%emt 0:00:00]} Kd6 {[%emt 0:00:00]} 41. g4 {[%emt 0:00:00]} Bd7 {[%emt 0:00:00]} 42. Bf2 {[%emt 0:00:00]} Kc6 {[%emt 0:00:00]} 43. Nd5 {[%emt 0:00:00]} Be6 {[%emt 0:00:00]} 44. Ne3 {[%emt 0:00:00]} Bg5 {[%emt 0:00:00]} 45. gxf5 {[%emt 0:00:00]} gxf5 {[%emt 0:00:00]} 46. Nd5 {[%emt 0:00:48]} Bd8 {[%emt 0:00:33]} 47. Nc3 {[%emt 0:01:17]} Bf6 {[%emt 0:00:48]} 48. Nd5 {[%emt 0:01:29]} Bd8 {[%emt 0:00:06]} 49. Nc3 {[%emt 0:00:16]} Bf6 {[%emt 0:00:09]} 50. Nb5 {[%emt 0:00:59]} f4 {[%emt 0:03:47]} 51. h4 {[%emt 0:01:15]} Bf5 {[%emt 0:00:06]} 52. Kd2 {[%emt 0:00:16]} e4 {[%emt 0:01:23]} 53. fxe4 {[%emt 0:01:26]} Bxe4 {[%emt 0:00:15]} 54. Nd4+ {[%emt 0:02:11]} Kb7 {[%emt 0:12:23]} 55. Ne2 {[%emt 0:00:45]} Be5 {[%emt 0:00:00]} 56. Nc3 {[%emt 0:00:26]} Bxc3+ {[%emt 0:00:00]} 57. Kxc3 {[%emt 0:00:10]} Bg6 {[%emt 0:00:00]} 58. b4 {[%emt 0:00:26]} Be8 {[%emt 0:00:00]} 59. c5 {[%emt 0:01:51]} Bxa4 {[%emt 0:00:00]} 60. cxb6 {[%emt 0:00:11]} axb4+ {[%emt 0:00:00]} 61. Kxb4 {[%emt 0:00:09]} Be8 {[%emt 0:00:00]} 62. Kc5 {[%emt 0:00:07]} Bc6 {[%emt 0:00:00]} 63. h5 {[%emt 0:00:49]} Be4 {[%emt 0:00:00]} 64. Kd6 {[%emt 0:00:27]} Kc8 {[%emt 0:00:00]} 65. h6 {[%emt 0:00:16]} f3 {[%emt 0:00:00]} 66. Ke6 {[%emt 0:00:23]} Kd8 {[%emt 0:00:00]} 67. Kf6 {[%emt 0:09:33]} 1-0

[Event "17th Memorial Lezcano Montalvo 2025"]
[Site "Gran Canaria"]
[Date "2025.04.17"]
[Round "6.35"]
[White "Almeida Cubas, Mirella"]
[Black "Sanchez Gonzalez, Diego"]
[Result "0-1"]
[Annotator "NA RC"]
[ECO "A05"]
[WhiteElo "1824"]
[BlackElo "2025"]
[PlyCount "110"]
[EventDate "2025.04.13"]
[EventType "swiss"]
[EventCountry "ESP"]
[SourceTitle "playchess.com"]
[Source "ChessBase"]
[SourceQuality "1"]
[TimeControl "5400+30"]

1. Nf3 {[%emt 0:03:17]} e6 {[%emt 0:00:49]} 2. c4 {[%emt 0:00:47]} d5 {[%emt 0:00:10]} 3. g3 {[%emt 0:00:36]} Nf6 {[%emt 0:00:50]} 4. Bg2 {[%emt 0:01:08]} g6 {[%emt 0:00:31]} 5. b3 {[%emt 0:02:16]} Bg7 {[%emt 0:00:25]} 6. Bb2 {[%emt 0:00:42]} O-O {[%emt 0:00:16]} 7. O-O {[%emt 0:01:07]} b6 {[%emt 0:00:08]} 8. d3 {[%emt 0:05:58]} Bb7 {[%emt 0:02:20]} 9. Nbd2 {[%emt 0:01:37]} Nbd7 {[%emt 0:00:33]} 10. Rc1 {[%emt 0:01:28]} c5 {[%emt 0:00:19]} 11. cxd5 {[%emt 0:00:52]} exd5 {[%emt 0:00:17]} 12. d4 {[%emt 0:01:04]} Ne4 {[%emt 1:29:52]} 13. Rc2 {[%emt 0:10:09]} Qe7 {[%emt 0:00:00]} 14. Qa1 {[%emt 0:05:06]} Nxd2 {[%emt 0:00:00]} 15. Rxd2 {[%emt 0:02:29]} c4 {[%emt 0:00:00]} 16. bxc4 {[%emt 0:03:41]} dxc4 {[%emt 0:00:00]} 17. a4 {[%emt 0:04:09]} Rfd8 {[%emt 0:00:00]} 18. Rc1 {[%emt 0:05:19]} Bd5 {[%emt 0:00:00]} 19. h4 {[%emt 0:04:52]} a6 {[%emt 0:00:00]} 20. Re1 {[%emt 0:09:57]} f5 {[%emt 0:00:00]} 21. e4 {[%emt 0:09:32]} fxe4 {[%emt 0:00:00]} 22. Ng5 {[%emt 0:03:02]} Nf6 {[%emt 0:00:00]} 23. Rde2 {[%emt 0:01:29]} b5 {[%emt 0:00:00]} 24. Nxe4 {[%emt 0:04:30]} Nxe4 25. Bxe4 {[%emt 0:01:34]} Qf7 {[%emt 0:00:00]} 26. Bc3 {[%emt 0:03:50]} Rf8 {[%emt 0:00:00]} 27. f4 {[%emt 0:03:29]} Rfd8 {[%emt 0:00:00]} 28. Kh2 {[%emt 0:01:53]} Bf6 {[%emt 0:00:00]} 29. Bxd5 {[%emt 0:02:44]} Qxd5 {[%emt 0:00:00]} 30. Re4 {[%emt 0:00:26]} Rab8 {[%emt 0:00:00]} 31. Qa3 {[%emt 0:03:00]} Qd7 {[%emt 0:00:00]} 32. a5 {[%emt 0:00:41]} Qb7 {[%emt 0:00:00]} 33. Qb4 {[%emt 0:00:49]} Qf7 {[%emt 0:00:00]} 34. Qc5 {[%emt 0:02:06]} Rd7 {[%emt 0:00:00]} 35. R1e2 {[%emt 0:01:08]} Rbd8 {[%emt 0:00:00]} 36. Qb6 {[%emt 0:00:54]} Rd6 {[%emt 0:00:00]} 37. Qc5 {[%emt 0:00:22]} R6d7 {[%emt 0:00:00]} 38. Qb6 {[%emt 0:00:31]} Rb7 {[%emt 0:00:00]} 39. Qc5 {[%emt 0:00:18]} Qd7 {[%emt 0:00:00]} 40. R2e3 {[%emt 0:00:45]} Rc7 {[%emt 0:00:00]} 41. Qb4 {[%emt 0:00:39]} Rcc8 {[%emt 0:00:00]} 42. Re2 {[%emt 0:00:19]} Rf8 {[%emt 0:00:00]} 43. Qb2 {[%emt 0:00:31]} Rf7 {[%emt 0:00:00]} 44. Qd2 {[%emt 0:00:35]} Rd8 {[%emt 0:00:00]} 45. Qe3 {[%emt 0:00:40]} Qd6 {[%emt 0:00:00]} 46. Re6 {[%emt 0:00:22]} Qa3 {[%emt 0:00:00]} 47. Re8+ {[%emt 0:00:41]} Rxe8 {[%emt 0:00:00]} 48. Qxe8+ {[%emt 0:00:05]} Kg7 {[%emt 0:00:00]} 49. Bb2 {[%emt 0:00:53]} Qxa5 {[%emt 0:00:00]} 50. Qe3 {[%emt 0:00:33]} b4 {[%emt 0:00:00]} 51. Qd2 {[%emt 0:00:34]} c3 {[%emt 0:00:00]} 52. Bxc3 {[%emt 0:00:28]} bxc3 {[%emt 0:00:00]} 53. Qd3 {[%emt 0:00:29]} Qb5 {[%emt 0:00:00]} 54. Qd1 {[%emt 0:00:27]} Rb7 {[%emt 0:00:00]} 55. Rc2 {[%emt 0:00:27]} Qc4 {[%emt 0:00:00]} 0-1

[Event "17th Memorial Lezcano Montalvo 2025"]
[Site "Gran Canaria"]
[Date "2025.04.17"]
[Round "6.36"]
[White "Arlet, Benjamin Andres"]
[Black "Cruz Pino, Adrian"]
[Result "1/2-1/2"]
[Annotator "NA RC"]
[ECO "B00"]
[WhiteElo "1721"]
[BlackElo "2099"]
[PlyCount "178"]
[EventDate "2025.04.13"]
[EventType "swiss"]
[EventCountry "ESP"]
[SourceTitle "playchess.com"]
[Source "ChessBase"]
[SourceQuality "1"]
[TimeControl "5400+30"]

1. e4 {[%emt 0:18:14]} Nc6 {[%emt 0:00:21]} 2. Nf3 {[%emt 0:00:06]} d6 {[%emt 0:00:48]} 3. d4 {[%emt 0:00:27]} Bg4 {[%emt 0:00:45]} 4. Be3 {[%emt 0:01:00]} g6 {[%emt 0:00:15]} 5. h3 {[%emt 0:00:11]} Bxf3 {[%emt 0:00:10]} 6. Qxf3 {[%emt 0:00:02]} Bg7 {[%emt 0:00:06]} 7. Bc4 {[%emt 0:00:39]} e6 {[%emt 0:00:10]} 8. c3 {[%emt 0:00:05]} Nge7 {[%emt 0:00:21]} 9. Nd2 {[%emt 0:01:18]} a6 {[%emt 0:00:04]} 10. a4 {[%emt 0:00:11]} Qd7 {[%emt 0:00:26]} 11. Qe2 {[%emt 0:01:08]} O-O {[%emt 0:01:13]} 12. O-O {[%emt 0:00:16]} Kh8 {[%emt 0:00:04]} 13. f4 {[%emt 0:02:20]} f5 {[%emt 0:00:19]} 14. e5 {[%emt 0:00:28]} Nd5 {[%emt 0:00:29]} 15. h4 {[%emt 0:05:17]} Nxe3 {[%emt 0:00:51]} 16. Qxe3 {[%emt 0:00:06]} d5 {[%emt 0:01:20]} 17. Be2 {[%emt 0:01:25]} h5 {[%emt 0:00:40]} 18. Nf3 {[%emt 0:04:28]} Bh6 {[%emt 0:00:27]} 19. Ng5 {[%emt 0:00:25]} Bxg5 {[%emt 0:00:07]} 20. hxg5 {[%emt 0:00:05]} Kg7 {[%emt 0:00:04]} 21. Rf3 {[%emt 0:01:10]} Na5 {[%emt 0:00:53]} 22. b4 {[%emt 0:00:32]} Nc4 {[%emt 0:00:18]} 23. Bxc4 {[%emt 0:03:12]} dxc4 {[%emt 0:00:34]} 24. Rf2 {[%emt 0:02:08]} Rfd8 {[%emt 0:00:20]} 25. Qe2 {[%emt 0:00:43]} Qd5 {[%emt 0:00:18]} 26. Qf3 {[%emt 0:00:06]} Kf7 {[%emt 0:00:26]} 27. Qxd5 {[%emt 0:00:12]} Rxd5 {[%emt 0:00:05]} 28. g3 {[%emt 0:00:15]} Ke7 {[%emt 0:00:26]} 29. Rb2 {[%emt 0:01:09]} b6 {[%emt 0:00:18]} 30. a5 {[%emt 0:00:31]} Rb5 {[%emt 0:07:15]} 31. Rba2 {[%emt 0:02:57]} c5 {[%emt 0:00:22]} 32. bxc5 {[%emt 0:09:47]} bxc5 {[%emt 0:01:56]} 33. dxc5 {[%emt 0:05:19]} Rd8 {[%emt 0:04:34]} 34. Ra4 {[%emt 0:01:44]} Rxc5 {[%emt 0:03:16]} 35. Rb4 {[%emt 0:11:50]} Rc7 {[%emt 0:05:41]} 36. Rb6 {[%emt 0:02:35]} Rd3 {[%emt 0:00:11]} 37. Rxa6 {[%emt 0:00:08]} Rxg3+ {[%emt 0:00:04]} 38. Kf2 {[%emt 0:00:10]} Rxc3 {[%emt 0:00:03]} 39. Rd6 {[%emt 0:00:58]} Rb3 {[%emt 0:04:11]} 40. a6 {[%emt 0:00:11]} Rb8 {[%emt 0:00:13]} 41. a7 {[%emt 0:01:45]} Ra8 {[%emt 0:00:03]} 42. Raa6 {[%emt 0:00:08]} Raxa7 {[%emt 0:01:01]} 43. Rxe6+ {[%emt 0:00:13]} Kd7 {[%emt 0:00:03]} 44. Red6+ {[%emt 0:00:08]} Kc8 {[%emt 0:00:11]} 45. Rxa7 {[%emt 0:02:48]} Rxa7 {[%emt 0:00:58]} 46. Rxg6 {[%emt 0:00:02]} Rc7 {[%emt 0:08:52]} 47. Ke2 {[%emt 0:00:35]} c3 {[%emt 0:00:19]} 48. Kd1 {[%emt 0:00:04]} Rc4 {[%emt 0:00:08]} 49. Rd6 {[%emt 0:02:31]} Rxf4 {[%emt 0:00:33]} 50. e6 {[%emt 0:00:08]} Kc7 {[%emt 0:00:58]} 51. Rd7+ {[%emt 0:02:39]} Kc6 {[%emt 0:02:34]} 52. g6 {[%emt 0:00:48]} Re4 {[%emt 0:00:04]} 53. g7 {[%emt 0:00:29]} Rxe6 {[%emt 0:00:04]} 54. g8=Q {[%emt 0:01:21]} Kxd7 {[%emt 0:00:05]} 55. Qf7+ {[%emt 0:00:14]} Kd6 {[%emt 1:01:43]} 56. Qxf5 {[%emt 0:00:26]} Re5 {[%emt 0:00:00]} 57. Qg6+ {[%emt 0:00:52]} Ke7 {[%emt 0:00:00]} 58. Kc2 {[%emt 0:00:21]} Rc5 {[%emt 0:00:00]} 59. Qg7+ {[%emt 0:01:32]} Kd6 {[%emt 0:00:00]} 60. Qd4+ {[%emt 0:00:25]} Kc6 {[%emt 0:00:00]} 61. Qd8 {[%emt 0:00:17]} h4 {[%emt 0:00:00]} 62. Qxh4 {[%emt 0:00:17]} Kc7 {[%emt 0:00:00]} 63. Qe7+ {[%emt 0:00:11]} Kc6 {[%emt 0:00:00]} 64. Qd8 {[%emt 0:00:18]} Kb7 {[%emt 0:00:00]} 65. Qd6 {[%emt 0:00:24]} Rc7 {[%emt 0:00:00]} 66. Qd1 {[%emt 0:01:03]} Kc8 {[%emt 0:00:00]} 67. Kb3 {[%emt 0:00:41]} c2 {[%emt 0:00:00]} 68. Qc1 {[%emt 0:00:08]} Rb7+ {[%emt 0:00:00]} 69. Ka4 {[%emt 0:00:06]} Rc7 {[%emt 0:00:00]} 70. Kb5 {[%emt 0:00:07]} Kb8 {[%emt 0:00:00]} 71. Kb6 {[%emt 0:00:46]} Rb7+ {[%emt 0:00:00]} 72. Kc6 {[%emt 0:00:04]} Rc7+ {[%emt 0:00:00]} 73. Kd6 {[%emt 0:00:07]} Rc8 {[%emt 0:00:00]} 74. Kd5 {[%emt 0:01:50]} Rc7 {[%emt 0:00:00]} 75. Ke5 {[%emt 0:00:06]} Kb7 {[%emt 0:00:00]} 76. Kd5 {[%emt 0:00:33]} Kb8 {[%emt 0:00:00]} 77. Ke5 {[%emt 0:02:02]} Kb7 {[%emt 0:00:00]} 78. Kd6 {[%emt 0:00:04]} Rc6+ {[%emt 0:00:00]} 79. Kd5 {[%emt 0:00:04]} Rc7 {[%emt 0:00:00]} 80. Ke4 {[%emt 0:01:02]} Ka7 {[%emt 0:00:00]} 81. Kd3 {[%emt 0:00:02]} Rd7+ {[%emt 0:00:00]} 82. Kc4 {[%emt 0:00:18]} Rc7+ {[%emt 0:00:00]} 83. Kb5 {[%emt 0:00:03]} Kb7 {[%emt 0:00:00]} 84. Ka5 {[%emt 0:00:59]} Rc5+ {[%emt 0:00:00]} 85. Ka4 {[%emt 0:00:16]} Rc7 {[%emt 0:00:00]} 86. Kb5 {[%emt 0:00:07]} Ka7 {[%emt 0:00:00]} 87. Qa3+ {[%emt 0:01:15]} Kb7 {[%emt 0:00:00]} 88. Qc1 {[%emt 0:00:04]} Ka7 {[%emt 0:00:00]} 89. Qa3+ {[%emt 0:00:03]} Kb7 {[%emt 0:00:00]} 1/2-1/2

[Event "17th Memorial Lezcano Montalvo 2025"]
[Site "Gran Canaria"]
[Date "2025.04.17"]
[Round "6.37"]
[White "Santos Falcon, Jose"]
[Black "Fernandez Lozano, Francesc"]
[Result "0-1"]
[Annotator "NA RC"]
[ECO "E72"]
[WhiteElo "1689"]
[BlackElo "2042"]
[PlyCount "36"]
[EventDate "2025.04.13"]
[EventType "swiss"]
[EventCountry "ESP"]
[SourceTitle "playchess.com"]
[Source "ChessBase"]
[SourceQuality "1"]
[TimeControl "5400+30"]

1. d4 {[%emt 0:00:19]} Nf6 {[%emt 0:00:01]} 2. c4 {[%emt 0:00:31]} g6 {[%emt 0:00:06]} 3. Nc3 {[%emt 0:00:25]} Bg7 {[%emt 0:00:07]} 4. g3 {[%emt 0:00:13]} d6 {[%emt 0:00:31]} 5. Bg2 {[%emt 0:00:08]} O-O {[%emt 0:00:06]} 6. e4 {[%emt 0:00:35]} c5 {[%emt 0:00:59]} 7. Nge2 {[%emt 0:01:17]} Nc6 {[%emt 0:02:52]} 8. Be3 {[%emt 0:02:01]} Ng4 {[%emt 0:01:14]} 9. dxc5 {[%emt 0:04:21]} Nxe3 10. fxe3 {[%emt 0:00:08]} dxc5 {[%emt 0:00:48]} 11. Qd5 {[%emt 0:01:12]} Nb4 {[%emt 0:00:45]} 12. Qxd8 {[%emt 0:00:12]} Rxd8 {[%emt 0:00:08]} 13. Rc1 {[%emt 0:00:19]} Nd3+ {[%emt 0:00:08]} 14. Kf1 {[%emt 0:00:58]} Nxc1 {[%emt 0:00:01]} 15. Nxc1 {[%emt 0:00:06]} Bxc3 {[%emt 0:00:33]} 16. bxc3 {[%emt 0:00:06]} Be6 {[%emt 0:01:48]} 17. Kf2 {[%emt 0:00:51]} Rd2+ {[%emt 0:00:45]} 18. Kf3 {[%emt 0:00:35]} Bxc4 {[%emt 0:01:48]} 0-1

[Event "17th Memorial Lezcano Montalvo 2025"]
[Site "Gran Canaria"]
[Date "2025.04.17"]
[Round "6.38"]
[White "Torres Rebolledo, Marcos"]
[Black "Perez Betancor, Jose Luis"]
[Result "1-0"]
[Annotator "NA RC"]
[ECO "A52"]
[WhiteElo "2010"]
[BlackElo "1782"]
[PlyCount "33"]
[EventDate "2025.04.13"]
[EventType "swiss"]
[EventCountry "ESP"]
[SourceTitle "playchess.com"]
[Source "ChessBase"]
[SourceQuality "1"]
[TimeControl "5400+30"]

1. d4 {[%emt 0:00:03]} Nf6 {[%emt 0:00:10]} 2. c4 {[%emt 0:00:05]} e5 {[%emt 0:00:27]} 3. dxe5 {[%emt 0:00:42]} Ng4 {[%emt 0:00:19]} 4. e4 {[%emt 0:01:04]} Nxe5 {[%emt 0:00:11]} 5. f4 {[%emt 0:00:15]} Nec6 {[%emt 0:00:31]} 6. Nc3 {[%emt 0:01:21]} Bc5 {[%emt 0:00:36]} 7. Qg4 {[%emt 0:06:16]} O-O {[%emt 0:00:16]} 8. f5 {[%emt 0:04:04]} d6 {[%emt 0:01:49]} 9. Nf3 {[%emt 0:09:40]} Nb4 {[%emt 0:03:35]} 10. Bh6 {[%emt 0:04:53]} g6 {[%emt 0:07:16]} 11. O-O-O {[%emt 0:01:30]} Re8 {[%emt 0:02:22]} 12. a3 {[%emt 0:10:29]} N4a6 {[%emt 0:01:31]} 13. Nd5 {[%emt 0:05:59]} Nd7 {[%emt 0:07:21]} 14. fxg6 {[%emt 0:04:26]} hxg6 {[%emt 0:01:21]} 15. Bg5 {[%emt 0:01:33]} Ne5 {[%emt 0:02:37]} 16. Qh4 {[%emt 0:01:53]} Nxf3 {[%emt 0:04:41]} 17. gxf3 {[%emt 0:44:47]} 1-0